fUST/lending_fUST_20240206
["ID","MTS","AMOUNT","RATE_DAILY","PERIOD"]
[313350860,1707209445477,-500.0,0.00027397,2]
[313350861,1707209445485,-500.0,0.00027397,2]
[313350862,1707209445494,-500.0,0.00027397,2]
[313350863,1707209445503,-500.0,0.00027397,2]
[313350864,1707209445512,-520.59011909,0.00027397,2]
[313350865,1707209445522,-507.81389843,0.00027397,2]
[313350866,1707209445534,-512.68408942,0.00027397,2]
[313350867,1707209445547,-538.06757753,0.00027397,2]
[313350868,1707209445556,-500.0,0.00027397,2]
[313350869,1707209445568,-561.39881461,0.00027397,2]
[313350870,1707209445590,-500.0,0.00027397,2]
[313350871,1707209445612,-500.0,0.00027397,2]
[313350872,1707209445634,-5532.56,0.00027397,2]
[313350873,1707209445647,-775.27,0.00027397,2]
[313350874,1707209445656,-500.0,0.00027397,2]
[313350875,1707209445666,-597.0120252,0.00027397,2]
[313350876,1707209445675,-1000.0,0.00027397,2]
[313350877,1707209445685,-500.0,0.00027397,2]
[313350878,1707209445694,-2587.28,0.00027397,2]
[313350879,1707209445703,-500.0,0.00027397,2]
[313350880,1707209445712,-500.0,0.00027397,2]
[313350881,1707209445722,-500.0,0.00027397,2]
[313350882,1707209445731,-500.0,0.00027397,2]
[313350883,1707209445741,-500.0,0.00027397,2]
[313350884,1707209445750,-500.0,0.00027397,2]
[313350885,1707209445760,-500.0,0.00027397,2]
[313350886,1707209445769,-500.0,0.00027397,2]
[313350887,1707209445779,-300.0,0.00027397,2]
[313350888,1707209445788,-1583.77,0.00027397,2]
[313350889,1707209445798,-500.0,0.00027397,2]
[313350890,1707209445807,-1742.56,0.00027397,2]
[313350891,1707209445816,-1464.9,0.00027397,2]
[313350892,1707209445826,-500.0,0.00027397,2]
[313350893,1707209445834,-506.67179528,0.00027397,2]
[313350894,1707209445844,-511.87355813,0.00027397,2]
[313350895,1707209445853,-2890.71,0.00027397,2]
[313350896,1707209445862,-500.0,0.00027397,2]
[313350897,1707209445871,-500.0,0.00027397,2]
[313350898,1707209445881,-500.0,0.00027397,2]
[313350899,1707209445890,-500.0,0.00027397,2]
[313350901,1707209445898,-500.0,0.00027397,2]
[313350903,1707209445907,-500.0,0.00027397,2]
[313350905,1707209445916,-500.0,0.00027397,2]
[313350907,1707209445925,-500.0,0.00027397,2]
[313350908,1707209445934,-500.0,0.00027397,2]
[313350909,1707209445943,-500.0,0.00027397,2]
[313350910,1707209445952,-154.98112192,0.00027422,2]
[313350912,1707209445961,-182.765365,0.00027476,2]
[313350914,1707209445970,-171.001181,0.00027476,2]
[313350916,1707209445979,-169.80683578,0.00027523,2]
[313350917,1707209445988,-211.20664869,0.00027523,2]
[313350918,1707209445997,-518.08355971,0.00027523,2]
[313350920,1707209446008,-500.0,0.00027523,2]
[313350921,1707209446017,-198.22563811,0.00027523,2]
[313350922,1707209446026,-500.0,0.00027523,2]
[313350923,1707209446035,-236.37567631,0.00027523,2]
[313350924,1707209446044,-564.18054109,0.00027523,2]
[313350925,1707209446052,-301.17897636,0.00027523,2]
[313350926,1707209446061,-500.0,0.00027523,2]
[313350927,1707209446070,-500.0,0.00027523,2]
[313350928,1707209446079,-500.0,0.00027523,2]
[313350929,1707209446088,-500.0,0.00027523,2]
[313350930,1707209446097,-500.0,0.00027523,2]
[313350931,1707209446106,-503.21050074,0.00027569,2]
[313350932,1707209446115,-534.44681807,0.00027569,2]
[313350934,1707209446124,-163.09482488,0.0002757,2]
[313350936,1707209446133,-1743.90819804,0.0002757,2]
[313350937,1707209446143,-500.0,0.00027664,2]
[313350938,1707209446152,-200.0,0.00027666,2]
[313350939,1707209446162,-200.0,0.00027666,2]
[313350940,1707209446171,-200.0,0.00027666,2]
[313350942,1707209446180,-200.0,0.00027666,2]
[313350944,1707209446189,-200.0,0.00027666,2]
[313350946,1707209446198,-200.0,0.00027666,2]
[313350947,1707209446207,-200.0,0.00027666,2]
[313350949,1707209446216,-200.0,0.00027666,2]
[313350950,1707209446226,-200.0,0.00027666,2]
[313350952,1707209446235,-200.0,0.00027666,2]
[313350954,1707209446244,-200.0,0.00027666,2]
[313350956,1707209446253,-200.0,0.00027666,2]
[313350957,1707209446262,-200.0,0.00027666,2]
[313350958,1707209446271,-200.0,0.00027666,2]
[313350959,1707209446281,-200.0,0.00027666,2]
[313350960,1707209446293,-200.0,0.00027666,2]
[313350961,1707209446302,-200.0,0.00027666,2]
[313350962,1707209446312,-200.0,0.00027666,2]
[313350963,1707209446321,-200.0,0.00027666,2]
[313350964,1707209446330,-200.0,0.00027666,2]
[313350965,1707209446340,-200.0,0.00027666,2]
[313350967,1707209446348,-200.0,0.00027666,2]
[313350969,1707209446357,-200.0,0.00027666,2]
[313350971,1707209446366,-200.0,0.00027666,2]
[313350972,1707209446376,-200.0,0.00027666,2]
[313350973,1707209446386,-207.91768,0.00027666,2]
[313350975,1707209446396,-500.0,0.0002767,2]
[313350976,1707209446405,-521.06,0.00027671,2]
[313350977,1707209446414,-1000.0,0.00027671,2]
[313350978,1707209446422,-500.0,0.00027671,2]
[313350979,1707209446431,-500.0,0.00027671,2]
[313350980,1707209446440,-521.75871446,0.00027671,2]
[313350981,1707209446449,-513.04652672,0.00027671,2]
[313350982,1707209446458,-510.3265111,0.00027671,2]
[313350983,1707209446468,-552.93,0.00027671,2]
[313350984,1707209446477,-916.62,0.00027671,2]
[313350985,1707209446486,-500.0,0.00027671,2]
[313350986,1707209446495,-519.80321669,0.00027671,2]
[313350987,1707209446504,-500.0,0.00027671,2]
[313350988,1707209446514,-520.56472014,0.00027671,2]
[313350989,1707209446524,-521.76030306,0.00027671,2]
[313350990,1707209446533,-500.0,0.00027671,2]
[313350991,1707209446542,-520.91309007,0.00027671,2]
[313350992,1707209446552,-511.40048712,0.00027671,2]
[313350993,1707209446561,-523.02231322,0.00027671,2]
[313350994,1707209446570,-500.0,0.00027671,2]
[313350995,1707209446580,-6183.92,0.00027671,2]
[313350996,1707209446588,-500.0,0.00027671,2]
[313350997,1707209446598,-507.19413081,0.00027671,2]
[313350998,1707209446607,-510.55613745,0.00027671,2]
[313350999,1707209446616,-500.0,0.00027671,2]
[313351000,1707209446625,-500.0,0.00027671,2]
[313351001,1707209446634,-3866.41,0.00027671,2]
[313351002,1707209446643,-154.32869122,0.00027671,2]
[313351003,1707209446652,-465.99391442,0.00027671,2]
[313351004,1707209446662,-4141.32,0.00027671,2]
[313351005,1707209446670,-640.10113115,0.00027671,2]
[313351006,1707209446679,-500.0,0.00027671,2]
[313351007,1707209446688,-500.0,0.00027671,2]
[313351008,1707209446698,-523.75004663,0.00027671,2]
[313351009,1707209446707,-500.0,0.00027671,2]
[313351010,1707209446716,-513.29350353,0.00027671,2]
[313351011,1707209446725,-500.0,0.00027671,2]
[313351012,1707209446734,-500.0,0.00027671,2]
[313351013,1707209446742,-5532.56,0.00027671,2]
[313351014,1707209446752,-775.27,0.00027671,2]
[313351015,1707209446761,-292.02474718,0.00027671,2]
[313351016,1707209446770,-1011.48568783,0.00027671,2]
[313351017,1707209446779,-531.09442611,0.00027671,2]
[313351018,1707209446788,-2587.28,0.00027671,2]
[313351019,1707209446797,-153.79380834,0.00027671,2]
[313351020,1707209446806,-522.10151487,0.00027671,2]
[313351021,1707209446815,-500.0,0.00027671,2]
[313351022,1707209446824,-508.2541826,0.00027671,2]
[313351023,1707209446833,-530.42572567,0.00027671,2]
[313351024,1707209446842,-500.0,0.00027671,2]
[313351025,1707209446851,-500.0,0.00027671,2]
[313351026,1707209446860,-500.0,0.00027671,2]
[313351027,1707209446869,-301.42178585,0.00027671,2]
[313351028,1707209446878,-1583.77,0.00027671,2]
[313351029,1707209446887,-529.43933627,0.00027671,2]
[313351030,1707209446896,-1742.56,0.00027671,2]
[313351031,1707209446905,-1464.9,0.00027671,2]
[313351032,1707209446914,-520.26429683,0.00027671,2]
[313351033,1707209446923,-2890.71,0.00027671,2]
[313351034,1707209447004,-1000.0,0.00027728,2]
[313351035,1707209447015,-156.81818257,0.0002775,3]
[313351036,1707209447025,-8673.81002401,0.0002775,4]
[313351037,1707209447034,-1000.0,0.00027751,2]
[313351038,1707209447043,-1000.0,0.00027753,2]
[313351039,1707209447052,-1000.0,0.00027764,2]
[313351040,1707209447061,-1000.0,0.00027769,2]
[313351041,1707209447070,-1000.0,0.00027793,2]
[313351042,1707209447079,-1791.242066,0.000278,2]
[313351043,1707209447088,-1000.0,0.00027825,2]
[313351044,1707209447098,-1000.0,0.00027831,2]
[313351045,1707209447106,-1000.0,0.00027835,2]
[313351046,1707209447115,-1000.0,0.00027848,2]
[313351047,1707209447124,-1000.0,0.00027858,2]
[313351048,1707209447133,-1000.0,0.00027873,2]
[313351049,1707209447142,-300.0,0.00027885,2]
[313351050,1707209447151,-152.09406619,0.00027885,2]
[313351051,1707209447160,-151.0,0.000279,2]
[313351052,1707209447169,-1499.9999,0.000279,3]
[313351053,1707209447178,-1000.0,0.00027917,2]
[313351054,1707209447187,-1000.0,0.00027929,2]
[313351055,1707209447196,-500.0,0.00027944,2]
[313351056,1707209447206,-521.06,0.00027945,2]
[313351057,1707209447214,-500.0,0.00027945,2]
[313351058,1707209447223,-504.51339849,0.00027945,2]
[313351059,1707209447233,-552.93,0.00027945,2]
[313351060,1707209447242,-916.62,0.00027945,2]
[313351061,1707209447251,-408.98430636,0.00027945,2]
[313351062,1707209447261,-500.0,0.00027945,2]
[313351063,1707209447269,-511.82233681,0.00027945,2]
[313351064,1707209447279,-6183.92,0.00027945,2]
[313351065,1707209447289,-552.62014122,0.00027945,2]
[313351066,1707209447300,-500.0,0.00027945,2]
[313351067,1707209447309,-3866.41,0.00027945,2]
[313351068,1707209447317,-4141.32,0.00027945,2]
[313351069,1707209447326,-500.0,0.00027945,2]
[313351070,1707209447336,-500.0,0.00027945,2]
[313351071,1707209447345,-500.0,0.00027945,2]
[313351072,1707209447354,-500.0,0.00027945,2]
[313351073,1707209447364,-5532.56,0.00027945,2]
[313351074,1707209447373,-775.27,0.00027945,2]
[313351075,1707209447383,-2587.28,0.00027945,2]
[313351076,1707209447392,-512.75714269,0.00027945,2]
[313351077,1707209447401,-500.0,0.00027945,2]
[313351078,1707209447410,-500.0,0.00027945,2]
[313351079,1707209447419,-500.0,0.00027945,2]
[313351080,1707209447427,-1583.77,0.00027945,2]
[313351081,1707209447436,-1742.56,0.00027945,2]
[313351082,1707209447446,-1464.9,0.00027945,2]
[313351083,1707209447455,-2890.71,0.00027945,2]
[313351084,1707209447464,-156.08329275,0.00027949,2]
[313351085,1707209447473,-391.0,0.0002795,15]
[313351086,1707209447482,-1000.0,0.00027972,2]
[313351087,1707209447491,-1000.0,0.0002798,2]
[313351088,1707209447500,-1000.0,0.00027983,2]
[313351089,1707209447510,-500.0,0.00027999,2]
[313351090,1707209447519,-500.0,0.00027999,2]
[313351091,1707209447529,-500.0,0.00027999,2]
[313351092,1707209447538,-882.10709284,0.00028,3]
[313351093,1707209447548,-201.45188811,0.00028,2]
[313351094,1707209447557,-792.56520971,0.00028,7]
[313351095,1707209447567,-42764.45519808,0.00028,20]
[313351096,1707209447577,-1000.0,0.00028,28]
[313351097,1707209447586,-26732.61266749,0.00028,2]
[313351098,1707209447596,-300.0,0.00028,13]
[313351099,1707209447606,-500.0,0.00028,2]
[313351100,1707209447615,-2315.94449364,0.00028,4]
[313351101,1707209447625,-3041.76127923,0.00028,2]
[313351102,1707209447635,-3842.52267255,0.00028,2]
[313351103,1707209447644,-1000.0,0.00028005,2]
[313351104,1707209447653,-158.93674939,0.00028016,2]
[313351105,1707209447663,-154.98112192,0.00028039,2]
[313351106,1707209447673,-1000.0,0.00028069,2]
[313351107,1707209447682,-500.0,0.000282,2]
[313351108,1707209447691,-171.739649,0.000282,3]
[313351109,1707209447700,-500.0,0.00028218,2]
[313351110,1707209447709,-621.93736278,0.00028218,2]
[313351111,1707209447719,-45254.922,0.00028219,10]
[313351112,1707209447728,-521.06,0.00028219,2]
[313351113,1707209447737,-500.0,0.00028219,2]
[313351114,1707209447746,-552.93,0.00028219,2]
[313351115,1707209447755,-916.62,0.00028219,2]
[313351116,1707209447765,-500.0,0.00028219,2]
[313351117,1707209447775,-6183.92,0.00028219,2]
[313351118,1707209447784,-500.0,0.00028219,2]
[313351119,1707209447793,-3866.41,0.00028219,2]
[313351120,1707209447802,-4141.32,0.00028219,2]
[313351121,1707209447812,-500.0,0.00028219,2]
[313351122,1707209447821,-500.0,0.00028219,2]
[313351123,1707209447830,-500.0,0.00028219,2]
[313351124,1707209447839,-500.0,0.00028219,2]
[313351125,1707209447848,-5532.56,0.00028219,2]
[313351126,1707209447857,-775.27,0.00028219,2]
[313351127,1707209447867,-2587.28,0.00028219,2]
[313351128,1707209447876,-500.0,0.00028219,2]
[313351129,1707209447885,-500.0,0.00028219,2]
[313351130,1707209447894,-500.0,0.00028219,2]
[313351131,1707209447903,-1583.77,0.00028219,2]
[313351132,1707209447912,-1742.56,0.00028219,2]
[313351133,1707209447922,-1464.9,0.00028219,2]
[313351134,1707209447931,-2890.71,0.00028219,2]
[313351135,1707209447940,-159.07832902,0.00028424,2]
[313351136,1707209447949,-1392.94609085,0.00028478,7]
[313351137,1707209447958,-158.93674939,0.0002848,2]
[313351138,1707209447967,-521.06,0.00028493,2]
[313351139,1707209447977,-249.75386664,0.00028493,2]
[313351140,1707209447986,-552.93,0.00028493,2]
[313351141,1707209447995,-916.62,0.00028493,2]
[313351142,1707209448004,-500.0,0.00028493,2]
[313351143,1707209448013,-6183.92,0.00028493,2]
[313351144,1707209448023,-500.0,0.00028493,2]
[313351145,1707209448031,-3866.41,0.00028493,2]
[313351146,1707209448040,-4141.32,0.00028493,2]
[313351147,1707209448049,-500.0,0.00028493,2]
[313351148,1707209448058,-500.0,0.00028493,2]
[313351149,1707209448067,-500.0,0.00028493,2]
[313351150,1707209448076,-500.0,0.00028493,2]
[313351151,1707209448085,-5532.56,0.00028493,2]
[313351152,1707209448094,-775.27,0.00028493,2]
[313351153,1707209448103,-2587.28,0.00028493,2]
[313351154,1707209448112,-500.0,0.00028493,2]
[313351155,1707209448121,-500.0,0.00028493,2]
[313351156,1707209448130,-328.15904323,0.00028493,2]
[313351157,1707209448147,-171.84095677,0.00028493,2]
[313351158,1707209448155,-1583.77,0.00028493,2]
[313351159,1707209448165,-1742.56,0.00028493,2]
[313351160,1707209448174,-661.34692208,0.00028493,2]
[313351423,1707210638415,-1168.00000001,0.00021,2]
[313351475,1707210646357,-662.32102825,0.00021,2]
[313351476,1707210646366,-47.14003319,0.00023,2]
[313351477,1707210646412,-3152.22537146,0.00023,2]
[313351478,1707210646421,-1600.26611219,0.00023929,2]
[313351479,1707210646430,-831.63293291,0.00023929,2]
[313351480,1707210646439,-7404.37733039,0.00025,2]
[313351481,1707210646448,-4737.09564271,0.00025,2]
[313351482,1707210646457,-310.01550155,0.00025644,2]
[313351483,1707210646466,-350.34985669,0.00027297,3]
[313351485,1707210646475,-158.78242559,0.00027297,2]
[313351487,1707210646483,-939.19131271,0.00027395,2]
[313351489,1707210646492,-530.55537567,0.00027397,2]
[313351491,1707210646501,-500.0,0.00027397,2]
[313351492,1707210646510,-500.0,0.00027397,2]
[313351493,1707210646519,-337.73742814,0.00027397,2]
[313351494,1707210646529,-500.24,0.00027397,2]
[313351495,1707210646538,-879.56,0.00027397,2]
[313351496,1707210646548,-500.0,0.00027397,2]
[313351497,1707210646557,-4655.88,0.00027397,2]
[313351498,1707210646566,-500.0,0.00027397,2]
[313351499,1707210646575,-500.0,0.00027397,2]
[313351500,1707210646584,-676.26,0.00027397,2]
[313351501,1707210646594,-500.0,0.00027397,2]
[313351502,1707210646603,-2161.81,0.00027397,2]
[313351503,1707210646612,-500.0,0.00027397,2]
[313351504,1707210646621,-1457.81,0.00027397,2]
[313351505,1707210646630,-500.0,0.00027397,2]
[313351506,1707210646640,-1633.08,0.00027397,2]
[313351507,1707210646649,-1255.69,0.00027397,2]
[313351508,1707210646659,-500.0,0.00027397,2]
[313351509,1707210646671,-5262.44,0.00027397,2]
[313351510,1707210646680,-3225.46,0.00027397,2]
[313351511,1707210646689,-3452.4,0.00027397,2]
[313351512,1707210646700,-500.0,0.00027397,2]
[313351513,1707210646710,-500.0,0.00027397,2]
[313351514,1707210646720,-500.0,0.00027397,2]
[313351515,1707210646729,-500.0,0.00027397,2]
[313351516,1707210646738,-2520.18,0.00027397,2]
[313351517,1707210646749,-155.0,0.00027493,2]
[313351518,1707210646758,-2503.0,0.000275,2]
[313351519,1707210646767,-500.0,0.0002767,2]
[313351520,1707210646777,-500.24,0.00027671,2]
[313351521,1707210646786,-879.56,0.00027671,2]
[313351522,1707210646795,-500.0,0.00027671,2]
[313351523,1707210646805,-4655.88,0.00027671,2]
[313351524,1707210646814,-500.0,0.00027671,2]
[313351525,1707210646823,-500.0,0.00027671,2]
[313351526,1707210646832,-676.26,0.00027671,2]
[313351527,1707210646843,-500.0,0.00027671,2]
[313351528,1707210646852,-2161.81,0.00027671,2]
[313351529,1707210646860,-500.0,0.00027671,2]
[313351530,1707210646870,-1457.81,0.00027671,2]
[313351531,1707210646879,-500.0,0.00027671,2]
[313351532,1707210646889,-1633.08,0.00027671,2]
[313351533,1707210646898,-1255.69,0.00027671,2]
[313351534,1707210646907,-5262.44,0.00027671,2]
[313351535,1707210646916,-3225.46,0.00027671,2]
[313351536,1707210646926,-3452.4,0.00027671,2]
[313351537,1707210646935,-500.0,0.00027671,2]
[313351538,1707210646944,-500.0,0.00027671,2]
[313351539,1707210646953,-2520.18,0.00027671,2]
[313351540,1707210646962,-8673.81002401,0.0002775,4]
[313351541,1707210646972,-500.0,0.00027944,2]
[313351542,1707210646981,-346.59273457,0.00027944,2]
[313351543,1707210646990,-206.40595228,0.00027944,2]
[313351544,1707210646999,-500.0,0.00027944,2]
[313351545,1707210647008,-500.0,0.00027944,2]
[313351546,1707210647017,-500.0,0.00027944,2]
[313351547,1707210647027,-500.0,0.00027944,2]
[313351548,1707210647037,-500.0,0.00027944,2]
[313351549,1707210647046,-500.0,0.00027944,2]
[313351550,1707210647055,-500.0,0.00027944,2]
[313351551,1707210647064,-500.0,0.00027944,2]
[313351552,1707210647074,-500.0,0.00027944,2]
[313351553,1707210647083,-500.0,0.00027944,2]
[313351554,1707210647093,-500.0,0.00027944,2]
[313351555,1707210647102,-500.0,0.00027944,2]
[313351556,1707210647111,-500.0,0.00027944,2]
[313351557,1707210647120,-500.0,0.00027944,2]
[313351558,1707210647128,-500.0,0.00027944,2]
[313351559,1707210647137,-500.0,0.00027944,2]
[313351560,1707210647146,-398.04397372,0.00027944,2]
[313351561,1707210647156,-500.0,0.00027944,2]
[313351562,1707210647165,-500.0,0.00027944,2]
[313351563,1707210647174,-410.02518179,0.00027944,2]
[313351564,1707210647184,-500.0,0.00027944,2]
[313351565,1707210647193,-500.0,0.00027944,2]
[313351566,1707210647202,-500.0,0.00027944,2]
[313351567,1707210647212,-500.0,0.00027944,2]
[313351568,1707210647221,-500.0,0.00027944,2]
[313351569,1707210647229,-500.0,0.00027944,2]
[313351570,1707210647238,-500.0,0.00027944,2]
[313351571,1707210647247,-500.0,0.00027944,2]
[313351572,1707210647256,-500.0,0.00027944,2]
[313351573,1707210647264,-500.0,0.00027944,2]
[313351574,1707210647274,-500.0,0.00027944,2]
[313351575,1707210647282,-500.0,0.00027944,2]
[313351576,1707210647291,-500.0,0.00027944,2]
[313351577,1707210647300,-500.0,0.00027944,2]
[313351578,1707210647309,-500.0,0.00027944,2]
[313351579,1707210647319,-532.16945635,0.00027944,2]
[313351580,1707210647329,-500.0,0.00027944,2]
[313351581,1707210647338,-500.0,0.00027944,2]
[313351582,1707210647347,-500.0,0.00027944,2]
[313351583,1707210647356,-500.0,0.00027944,2]
[313351584,1707210647365,-500.0,0.00027944,2]
[313351585,1707210647375,-500.0,0.00027944,2]
[313351586,1707210647384,-500.0,0.00027944,2]
[313351587,1707210647393,-195.40030709,0.00027944,2]
[313351588,1707210647402,-500.0,0.00027944,2]
[313351589,1707210647411,-500.0,0.00027944,2]
[313351590,1707210647511,-500.0,0.00027944,2]
[313351591,1707210647522,-500.0,0.00027944,2]
[313351592,1707210647531,-500.24,0.00027945,2]
[313351593,1707210647541,-879.56,0.00027945,2]
[313351594,1707210647550,-500.0,0.00027945,2]
[313351595,1707210647559,-4655.88,0.00027945,2]
[313351596,1707210647569,-500.0,0.00027945,2]
[313351597,1707210647578,-500.0,0.00027945,2]
[313351598,1707210647587,-676.26,0.00027945,2]
[313351599,1707210647597,-500.0,0.00027945,2]
[313351600,1707210647606,-2161.81,0.00027945,2]
[313351601,1707210647615,-500.0,0.00027945,2]
[313351602,1707210647624,-1457.81,0.00027945,2]
[313351603,1707210647633,-245.41087656,0.00027945,2]
[313351604,1707210647642,-1633.08,0.00027945,2]
[313351605,1707210647651,-1255.69,0.00027945,2]
[313351606,1707210647661,-5262.44,0.00027945,2]
[313351607,1707210647675,-3225.46,0.00027945,2]
[313351608,1707210647685,-3452.4,0.00027945,2]
[313351609,1707210647694,-500.0,0.00027945,2]
[313351610,1707210647704,-500.0,0.00027945,2]
[313351611,1707210647713,-2520.18,0.00027945,2]
[313351612,1707210647722,-882.10709284,0.00028,3]
[313351613,1707210647731,-201.45188811,0.00028,2]
[313351614,1707210647743,-300.0,0.00028,13]
[313351615,1707210647752,-1158.0,0.00028,4]
[313351616,1707210647762,-4027.0,0.00028,2]
[313351617,1707210647771,-200.0,0.00028207,15]
[313351618,1707210647782,-500.0,0.00028218,2]
[313351619,1707210647792,-500.24,0.00028219,2]
[313351620,1707210647800,-879.56,0.00028219,2]
[313351621,1707210647808,-500.0,0.00028219,2]
[313351622,1707210647816,-4655.88,0.00028219,2]
[313351623,1707210647824,-500.0,0.00028219,2]
[313351624,1707210647834,-500.0,0.00028219,2]
[313351625,1707210647843,-676.26,0.00028219,2]
[313351626,1707210647852,-500.0,0.00028219,2]
[313351627,1707210647862,-2161.81,0.00028219,2]
[313351628,1707210647871,-500.0,0.00028219,2]
[313351629,1707210647880,-1457.81,0.00028219,2]
[313351630,1707210647890,-1633.08,0.00028219,2]
[313351631,1707210647900,-1255.69,0.00028219,2]
[313351632,1707210647909,-5262.44,0.00028219,2]
[313351633,1707210647919,-3225.46,0.00028219,2]
[313351634,1707210647928,-3452.4,0.00028219,2]
[313351635,1707210647938,-500.0,0.00028219,2]
[313351636,1707210647947,-550.17471562,0.00028219,2]
[313351637,1707210647956,-2520.18,0.00028219,2]
[313351638,1707210647966,-158.78242559,0.00028393,2]
[313351639,1707210647975,-500.0,0.000284,2]
[313351640,1707210647984,-500.0,0.00028492,2]
[313351641,1707210647993,-280.43479172,0.00028493,2]
[313351642,1707210648003,-765.83829115,0.00028493,2]
[313351643,1707210648012,-155.03255684,0.00028493,2]
[313351644,1707210648021,-500.0,0.00028493,2]
[313351645,1707210648031,-500.24,0.00028493,2]
[313351646,1707210648040,-879.56,0.00028493,2]
[313351647,1707210648050,-500.0,0.00028493,2]
[313351648,1707210648059,-151.0,0.00028493,2]
[313351649,1707210648068,-151.0,0.00028493,2]
[313351650,1707210648077,-4655.88,0.00028493,2]
[313351651,1707210648087,-500.0,0.00028493,2]
[313351652,1707210648096,-500.0,0.00028493,2]
[313351653,1707210648105,-676.26,0.00028493,2]
[313351654,1707210648114,-500.0,0.00028493,2]
[313351655,1707210648123,-2161.81,0.00028493,2]
[313351656,1707210648132,-500.0,0.00028493,2]
[313351657,1707210648141,-1457.81,0.00028493,2]
[313351658,1707210648150,-1633.08,0.00028493,2]
[313351659,1707210648159,-1255.69,0.00028493,2]
[313351660,1707210648167,-151.0,0.00028493,2]
[313351661,1707210648176,-5262.44,0.00028493,2]
[313351662,1707210648186,-3225.46,0.00028493,2]
[313351663,1707210648195,-3452.4,0.00028493,2]
[313351664,1707210648204,-500.0,0.00028493,2]
[313351665,1707210648214,-2520.18,0.00028493,2]
[313351666,1707210648222,-500.0,0.000285,2]
[313351667,1707210648232,-1217.94796286,0.000285,2]
[313351674,1707210789633,244.03801,0.00027397,120]
[313351733,1707211674754,2077.0,0.000274,30]
[313351795,1707211839295,-155.00930056,0.00023904,4]
[313351797,1707211839306,-1020.3724839,0.00023904,2]
[313351798,1707211839366,-1092.38594637,0.00023904,2]
[313351799,1707211839378,-353.787569,0.00023904,2]
[313351800,1707211839388,-1018.05941437,0.00023905,2]
[313351801,1707211839397,-28.38040456,0.00023941,2]
[313351830,1707211845836,-921.79253314,0.00023941,2]
[313351855,1707211846150,-406.93065937,0.00023941,2]
[313351857,1707211846161,-247.52426231,0.00023941,2]
[313351859,1707211846171,-2061.19261042,0.00023942,2]
[313351861,1707211846180,-65.96638875,0.00025171,2]
[313351863,1707211846192,-214.64320292,0.00025171,2]
[313351865,1707211846202,-294.61292283,0.00027397,2]
[313352044,1707213042819,-155.00930056,0.00021084,4]
[313352045,1707213042829,-358.17416426,0.00021084,2]
[313352072,1707213155837,230.4930045,0.000201,4]
[313352081,1707213562159,-352.13550626,0.00018956,2]
[313352082,1707213562185,-1386.86449374,0.00018956,2]
[313352104,1707213957090,254.74476584,0.00018,2]
[313352105,1707214020072,3999.999999,0.00015,2]
[313352170,1707214238041,-1332.88451943,0.00018914,2]
[313352194,1707214241321,-3019.07893706,0.00018914,2]
[313352217,1707214245137,-396.85223137,0.00018914,2]
[313352226,1707214246223,-474.15221702,0.00018914,2]
[313352227,1707214246232,-1804.43724042,0.00018914,2]
[313352228,1707214246242,-689.88601338,0.00018914,2]
[313352229,1707214246252,-1018.05941437,0.00018915,2]
[313352230,1707214246262,-2466.54599927,0.00018916,2]